Cogmind - Beta 13 @@@ ROGUE MODE // 2024.04.18 @ 18:31:22 Player: Lunace Result: Destroyed by P-70 Sage with Tesla Rifle Performance ------------- Evolutions (6) 3000 Regions Visited (18) 3600 Robots Destroyed (198) 990 Value Destroyed (8292) 8292 Prototype IDs (52) 1040 Alien Tech Used (0) 0 Bonus (4150) 4150 TOTAL SCORE: 21072 Bonus ------- High Alert Combat Kills 619 Follower Combat Kills 164 Aligned with FarCom 300 Met Data Miner 300 Met Warlord at Base 500 MAIN.C Attacked Warlord 500 Warlord Defense Kills 2262 Friendly Fire -495 Cogmind --------- Core Integrity 0/1150 Matter 300/300 Energy 62/100 System Corruption 9% Temperature Cool (9) Movement Core (50) Location -4/Warlord Parts ------- > --- POWER (2) -------- (None) > --- PROPULSION (4) --- (None) > --- UTILITY (7) ------ Enhanced Optical Array Experimental Targeting Computer Experimental Armor Integrity Analyzer > --- WEAPON (6) ------- (None) > --- INVENTORY (5) ---- Makeshift System Restoration Module Railgun Railgun Spear Peak State ------------ > --- POWER ------------ Vortex Chain Reactor > --- PROPULSION ------- Myomer Leg Enhanced Biometal Leg Enhanced Biometal Leg Enhanced Biometal Leg > --- UTILITY ---------- Enhanced Optical Array Experimental Targeting Computer Experimental Armor Integrity Analyzer Hardened Medium Armor Plating Light Regenerative Plating Thermal Barrier Improved Corruption Screen > --- WEAPON ----------- Vortex Rail Vortex Rail Tiamat Missile Launcher Vortex Catalyst Activator Spear > --- INVENTORY -------- Makeshift System Restoration Module Railgun Railgun Tiamat Missile Launcher Spear [Rating: 149] Favorites ----------- Power Micro Fission Core Engine Light Ion Engine Power Core Micro Fission Core Reactor Vortex Chain Reactor Propulsion Potential Leg Treads Medium Treads Leg Potential Leg Wheel Compact Wheel Hover Unit Improved Gravmag System Flight Unit Improved Surge Thruster Utility Enhanced Optical Array Device Improved Weapon Cycler Storage Medium Storage Unit Processor Enhanced Optical Array Hackware System Shield Protection Hardened Medium Armor Plating Weapon Railgun Energy Gun Vortex Rail Ballistic Gun Railgun Ballistic Cannon Enhanced Gauss Cannon Launcher Heavy Missile Launcher Impact Weapon Powered Hammer Slashing Weapon Ripper Piercing Weapon Spear Special Melee Weapon Improved Datajack Build | -11 -10 -10 -10 -9 -8 -8 -8 -6 -6 -6 -6 -5 -5 -5 -4 -4 -4 -4 ------- Run | Yrd Mat Min Exi Min Mat Sto Rec Fac Low Low Dat Pro Fac Ext Fac Upp Upp War Slots Evolved 12 | . . . . . 4 . . 4 . . . . 2 . 2 . . . Power 1 | . . . . . . . . . . . . . . . 1 . . . Propulsion 2 | . . . . . . . . . . . . . 2 . . . . . Utility 5 | . . . . . 2 . . 2 . . . . . . 1 . . . Weapon 4 | . . . . . 2 . . 2 . . . . . . . . . . Parts Attached 250 | 6 11 3 2 2 9 9 4 29 2 3 . 5 87 5 27 19 13 14 Power 27 | 1 2 . . 1 1 . . 4 . 1 . 2 9 . 4 . . 2 Engine 10 | 1 2 . . 1 1 . . 1 . . . 1 2 . 1 . . . Core 16 | . . . . . . . . 3 . 1 . 1 7 . 3 . . 1 Reactor 1 | . . . . . . . . . . . . . . . . . . 1 Propulsion 52 | 2 3 3 2 . . . . . . . . . 22 2 6 4 3 5 Treads 4 | . . . . . . . . . . . . . 2 . . . 2 . Leg 34 | 2 3 3 2 . . . . . . . . . 14 1 . 3 1 5 Wheel 4 | . . . . . . . . . . . . . 3 . 1 . . . Hover 5 | . . . . . . . . . . . . . 3 . 2 . . . Flight 5 | . . . . . . . . . . . . . . 1 3 1 . . Utility 98 | 1 3 . . . 4 4 2 9 . 1 . 2 35 3 12 10 9 3 Device 42 | . 1 . . . 1 . 1 1 . 1 . . 23 2 4 3 4 1 Storage 5 | 1 1 . . . 1 1 . . . . . . 1 . . . . . Processor 19 | . 1 . . . 1 1 1 4 . . . . 1 1 6 . 1 2 Hackware 2 | . . . . . . . . . . . . . . . 2 . . . Protection 30 | . . . . . 1 2 . 4 . . . 2 10 . . 7 4 . Artifact . | . . . . . . . . . . . . . . . . . . . Weapon 73 | 2 3 . . 1 4 5 2 16 2 1 . 1 21 . 5 5 1 4 Energy Gun 10 | 1 . . . . . 2 . 5 . . . . . . . . . 2 Energy Cannon . | . . . . . . . . . . . . . . . . . . . Ballistic Gun 28 | 1 3 . . 1 2 1 . 6 1 . . 1 8 . . 4 . . Ballistic Cannon 6 | . . . . . . 1 . . . . . . 5 . . . . . Launcher 19 | . . . . . 2 . 2 5 1 . . . 5 . . 1 1 2 Special Weapon . | . . . . . . . . . . . . . . . . . . . Impact Weapon 1 | . . . . . . . . . . . . . 1 . . . . . Slashing Weapon 5 | . . . . . . 1 . . . 1 . . 2 . 1 . . . Piercing Weapon 3 | . . . . . . . . . . . . . . . 3 . . . Special Melee Weapon 1 | . . . . . . . . . . . . . . . 1 . . . Unidentified Prototypes 9 | . . . . . . . . . . . . . 3 . . . . 6 Parts Lost 73 | . . . . . . 5 1 . . . . 2 20 15 6 . 10 14 Power 4 | . . . . . . . . . . . . 1 1 . 1 . . 1 Propulsion 20 | . . . . . . . . . . . . . 5 5 3 . 3 4 Utility 24 | . . . . . . 2 1 . . . . . 6 4 1 . 6 4 Weapon 25 | . . . . . . 3 . . . . . 1 8 6 1 . 1 5 Highest Loss Streak 14 | . . . . . . 2 1 . . . . 2 4 12 3 . 8 14 To Critical Strikes 1 | . . . . . . . . . . . . . . 1 . . . . Average Slot Usage (%) 93 | . 96 100 100 100 90 91 96 99 100 100 100 99 95 83 71 92 78 93 Engine 2 | . 14 14 14 14 9 9 9 1 . . . 1 . . . . . 1 Core 4 | . . . . . . . . 4 6 6 6 4 4 4 5 5 5 6 Treads 1 | . . . . . . . . . . . . . . 4 . . . 8 Leg 16 | . 27 28 28 28 18 18 18 13 13 13 13 13 20 15 . 14 8 11 Device 6 | . 1 . . . 1 . 2 6 6 6 6 6 8 16 9 5 9 9 Storage 5 | . 14 14 14 14 17 18 18 6 6 6 6 6 5 4 . . . . Processor 11 | . 9 14 14 14 7 6 9 12 20 20 20 20 10 5 15 5 5 11 Hackware 1 | . . . . . . . . . . . . . . . 8 7 1 . Protection 8 | . . . . . 9 7 3 12 6 6 6 6 7 4 . 15 13 13 Energy Gun 1 | . 2 . . . . 8 9 5 . . . . . . . . . 6 Ballistic Gun 15 | . 25 28 28 28 25 18 9 16 20 20 20 24 16 3 . 19 16 4 Ballistic Cannon 2 | . . . . . . . . . . . . . 6 9 . . . . Launcher 5 | . . . . . 2 1 8 9 19 18 13 7 3 2 . 3 8 9 Slashing Weapon 2 | . . . . . . 3 9 6 . 1 6 6 2 . 1 . . . Piercing Weapon 1 | . . . . . . . . . . . . . . . 11 5 5 4 Naked Turns . | . . . . . . . . . . . . . . . . . . . Heaviest Build 104 | 10 19 17 17 17 35 39 40 60 60 60 55 58 89 67 26 68 68 104 Greatest Support 115 | 20 20 20 60 60 60 60 60 60 60 60 60 60 100 60 17 60 60 115 Greatest Overweight (x) 5 | 1 1 . . . . . . . . . . . 5 1 1 1 3 2 Average Overweight (x) . | . . . . . . . . . . . . . . . . . 1 . Largest Inventory Capacity 10 | 8 10 10 10 10 10 10 10 10 10 10 10 10 10 10 5 5 5 5 Average Capacity 8 | 7 9 10 10 10 10 10 10 10 10 10 10 10 10 9 5 5 5 5 Most Carried 10 | 2 10 10 10 10 8 10 10 10 10 10 10 10 10 10 5 5 5 5 Average Carried 7 | 1 7 9 10 9 6 7 9 9 9 9 10 8 9 8 4 4 3 4 Final Capacity 10 | 8 10 10 10 10 10 10 10 10 10 10 10 10 10 5 5 5 5 5 Final Carried 10 | 2 10 10 10 9 7 10 10 10 10 10 10 9 8 5 4 4 4 4 Class Distribution -------------------- 43% | Executioner 18% | Derelict-Executioner 11% | Mutant 9% | Skirmisher Dominant Class ---------------- Mutant | -10/Materials Mutant | -10/Mines Mutant | -10/Exiles Mutant | -9/Mines Skirmisher | -8/Materials Skirmisher | -8/Storage Commander-Skirmisher | -8/Recycling Executioner | -6/Factory Executioner | -6/Lower Caves Executioner | -6/Lower Caves Executioner | -6/Data Miner Executioner | -5/Proximity Caves Executioner | -5/Factory Mutant | -5/Extension Scavenger-Scout | -4/Factory Derelict-Executioner | -4/Upper Caves Derelict-Executioner | -4/Upper Caves Derelict-Executioner | -4/Warlord Resources | -11 -10 -10 -10 -9 -8 -8 -8 -6 -6 -6 -6 -5 -5 -5 -4 -4 -4 -4 ----------- Run | Yrd Mat Min Exi Min Mat Sto Rec Fac Low Low Dat Pro Fac Ext Fac Upp Upp War Matter Collected 8343 | 262 234 213 . 22 227 369 572 448 333 391 . 664 2582 335 300 617 312 462 Remotely 886 | . . . . . 42 . . . . . . . 31 255 . 434 124 . Salvage Created 6873 | 66 266 174 . . 389 415 386 364 314 181 . 527 1898 282 467 431 258 455 Parts 371 | 4 24 6 . . 34 26 10 30 10 17 . 27 91 15 28 17 20 12 Haulers Intercepted 3 | . 1 . . . 1 1 . . . . . . . . . . . . Recyclers Shooed 7 | . . 1 . . 2 . . . . . . . 3 1 . . . . Parts Field Recycled 50 | . . . . . . . . . . . . . 50 . . . . . Retrieved Matter 657 | . . . . . . . . . . . . . 657 . . . . . Parts Self-Destructed 62 | . . . . . . . . . 4 11 . 21 . . . 15 11 . Prevented 1 | . . . . . . . . . . . . 1 . . . . . . Kills | -11 -10 -10 -10 -9 -8 -8 -8 -6 -6 -6 -6 -5 -5 -5 -4 -4 -4 -4 ------- Run | Yrd Mat Min Exi Min Mat Sto Rec Fac Low Low Dat Pro Fac Ext Fac Upp Upp War Combat Hostiles Destroyed 153 | . 6 3 . . 12 8 3 9 12 8 . 16 29 10 4 10 7 16 Melee 18 | . . . . . . . 3 1 . 1 . 1 6 . 4 2 . . Guns 47 | . 6 3 . . 3 7 . 1 2 . . 6 13 . . 3 3 . Cannons 7 | . . . . . . . . . . . . . 5 2 . . . . AOE 81 | . . . . . 9 1 . 7 10 7 . 9 5 8 . 5 4 16 Classes Destroyed 22 | 1 4 1 . . 2 1 . 3 . . . 1 1 . 2 1 2 3 Worker 4 | . . 1 . . . . . . . . . . 3 . . . . . Builder 9 | . . . . . 3 . . . . . . . 4 2 . . . . Hauler 3 | . 1 . . . 1 1 . . . . . . . . . . . . Recycler 11 | 1 . 1 . . 1 . 3 . . . . . 3 . 2 . . . Mechanic 1 | . . . . . . . . . . . . . . . . . . 1 Operator 1 | . . . . . . . . . . . . . . . 1 . . . Drone 2 | . . . . . . . . . . . . 2 . . . . . . Watcher 9 | . 2 . . . 1 . . 1 . . . . 4 1 . . . . Swarmer 32 | . 3 1 . . 2 . . 4 3 4 . 5 . 5 . 1 4 . Cutter 2 | . . . . . . . . . . . . . . . 2 . . . Grunt 61 | . 3 2 . . 8 4 1 3 8 3 . 4 5 3 . 7 . 10 Brawler 5 | . . . . . . 1 . . . . . 1 . 1 . . . 2 Protector 3 | . . . . . . . . 1 . . . . . . . . . 2 Sentry 16 | . . . . . 2 3 2 1 1 . . 1 4 1 . 1 . . Specialist 4 | . . . . . . . . . . . . . . . . . . 4 Hunter 8 | . . . . . . . . 1 . . . 3 3 . . . . 1 Programmer 23 | . . . . . . . . 1 . 1 . . 16 . 2 1 2 . Heavy 1 | . . . . . . . . . . . . . 1 . . . . . Behemoth 1 | . . . . . . . . . . . . . . . . . 1 . Executioner 1 | . . . . . . . . . . . . . . . . . . 1 Decomposer 1 | . . . . . . . . . . . . . . . . 1 . . Samaritan 1 | . . . . . . . . . . . . . . . . 1 . . Mutant 1 | . . . . . . . . . . . . . . . . . 1 . Best Kill Streak 16 | 1 4 2 . . 16 5 2 6 7 4 . 7 4 6 4 3 4 12 Combat Bots Only 11 | . 4 2 . . 11 4 2 6 7 4 . 7 3 5 2 3 4 11 Max Kills in Single Turn 4 | 1 1 1 . . 3 2 1 3 2 4 . 3 2 4 2 2 3 4 Gunslinging . | . . . . . . . . . . . . . . . . . . . Exploded 4 | . . . . . 2 1 . 3 2 4 . 3 2 4 . 2 3 2 Melee 2 | . . . . . . . 1 1 . 1 . 1 1 . 2 1 . . Uniques/NPCs Destroyed . | . . . . . . . . . . . . . . . . . . . Combat | -11 -10 -10 -10 -9 -8 -8 -8 -6 -6 -6 -6 -5 -5 -5 -4 -4 -4 -4 -------- Run | Yrd Mat Min Exi Min Mat Sto Rec Fac Low Low Dat Pro Fac Ext Fac Upp Upp War Hostile Shots Fired 1056 | . 29 20 . . 29 45 12 25 8 20 . 53 244 133 39 83 50 266 Missed 321 | . 10 6 . . 9 15 1 6 5 5 . 22 65 36 11 27 8 95 Damage Taken 16332 | . 174 145 . . 302 649 138 273 47 290 . 616 4808 2528 619 1272 1023 3448 Core 2408 | . 26 9 . . 10 75 . 22 19 35 . 53 380 618 163 48 82 868 Absorbed by Shields 13 | . . . . . . . . 13 . . . . . . . . . . Redirected to Shielding 7 | . . . . . . . . . . . . . . . . . 7 . Ignored by Resistances 801 | . . . . . . . . . . . . . . . . . . 801 Regen/Repaired (Parts) 1320 | . 57 . . . 69 . . . . . . . 406 52 . 332 225 179 Core Remaining (%) 70 | 100 . . . 86 . . 84 . . . . 84 . . . . . . Volleys Fired 370 | 2 37 18 2 . 16 27 . 7 14 3 . 19 149 30 . 18 13 15 Largest 6 | 2 2 2 2 . 3 4 . 5 3 3 . 5 6 4 . 4 5 3 Hottest 247 | 60 60 40 40 . 69 130 . 142 121 121 . 153 247 210 . 140 197 137 Shots Fired 837 | 4 74 36 4 . 38 71 . 18 24 6 . 68 344 45 . 36 50 19 Gun 552 | 4 74 36 4 . 24 69 . 10 10 . . 57 179 11 . 26 41 7 Cannon 172 | . . . . . . . . . . . . . 147 25 . . . . Launcher 113 | . . . . . 14 2 . 8 14 6 . 11 18 9 . 10 9 12 Special . | . . . . . . . . . . . . . . . . . . . Kinetic 693 | 2 60 36 4 . 24 61 . 10 10 . . 57 326 36 . 26 41 . Thermal 24 | 2 14 . . . . 8 . . . . . . . . . . . . Explosive 107 | . . . . . 14 2 . 8 14 6 . 11 18 9 . 10 9 6 Electromagnetic . | . . . . . . . . . . . . . . . . . . . Entropic 13 | . . . . . . . . . . . . . . . . . . 13 Robot Hit Streak 10 | 4 5 7 3 . 10 6 . 5 5 7 . 7 9 5 . 6 8 8 Robot Miss Streak 7 | . 5 3 1 . 3 3 . 2 2 1 . 3 7 3 . 5 2 4 Penetration Max 1 | . . . . . . . . . . . . 1 1 . . . . . Secondary Targets 6 | . 1 . . . . 2 . . . . . 1 1 . . 1 . . Max Gunslinging Chain 1 | . 1 . . . . 1 . . . . . 1 1 . . 1 . . Shots Hit Robots 500 | 4 36 22 3 . 17 45 11 12 14 10 . 46 164 33 16 27 29 11 Core Hits 402 | 2 15 9 1 . 40 24 4 30 26 15 . 32 85 21 9 28 16 45 Critical Kills 10 | . 1 . . . 1 . . . . . . 1 7 . . . . . Critical Parts Destroyed 7 | . . . . . . . . . . . . . 6 1 . . . . Critical Strikes 35 | . 1 . . . 1 1 . 1 . 2 . 2 21 3 2 1 . . Burn 1 | . . . . . . 1 . . . . . . . . . . . . Destroy 19 | . 1 . . . 1 . . . . . . 2 13 2 . . . . Blast 4 | . . . . . . . . . . . . . 3 1 . . . . Sever 8 | . . . . . . . . 1 . 2 . . 5 . . . . . Impale 3 | . . . . . . . . . . . . . . . 2 1 . . Melee Attacks 138 | . . . . . . 1 11 9 . 7 . 2 60 7 29 7 1 4 Impact 8 | . . . . . . . . . . . . . 1 7 . . . . Slashing 89 | . . . . . . 1 11 9 . 7 . 2 59 . . . . . Piercing 41 | . . . . . . . . . . . . . . . 29 7 1 4 Sneak Attacks 14 | . . . . . . . 4 . . . . 1 2 . 3 3 1 . Combat Hostiles 1 | . . . . . . . . . . . . 1 . . . . . . Follow-up Attacks 4 | . . . . . . . . . . . . . . . 4 . . . Damage Inflicted 28032 | 44 363 280 36 . 1482 767 553 913 1566 1141 . 1889 6408 2039 583 2013 1521 6434 Guns 6060 | 44 363 280 36 . 164 673 . 142 127 . . 749 2310 45 . 351 614 162 Cannons 2233 | . . . . . . . . . . . . . 1688 545 . . . . Explosions 16451 | . . . . . 1318 94 . 614 1439 989 . 1058 1213 1229 . 1385 840 6272 Melee 3288 | . . . . . . . 553 157 . 152 . 82 1197 220 583 277 67 . Ramming . | . . . . . . . . . . . . . . . . . . . Kinetic 7908 | 20 264 280 36 . 164 573 . 142 127 . . 749 3998 590 . 351 614 . Thermal 390 | 24 99 . . . . 100 . . . . . . 167 . . . . . Explosive 11962 | . . . . . 1318 94 . 614 1439 989 . 1058 1040 1229 . 1385 840 1956 Electromagnetic 6 | . . . . . . . . . . . . . 6 . . . . . Impact 220 | . . . . . . . . . . . . . . 220 . . . . Slashing 2141 | . . . . . . . 553 157 . 152 . 82 1197 . . . . . Piercing 927 | . . . . . . . . . . . . . . . 583 277 67 . Entropic 4478 | . . . . . . . . . . . . . . . . . . 4478 Highest Corruption 9 | . . . . . . . . 1 1 2 2 2 8 . 3 3 4 9 Average Corruption 2 | . . . . . . . . 1 1 1 2 2 2 . 2 2 3 3 Corruption Purged 30 | . . . . . . . . . . . . . 22 . 4 . 4 . Corruption Blocked 40 | . . . . . . . . . . . . . . . . . . 40 Effects 120 | . . . . . . . . . 4 4 1 6 53 . 2 18 31 1 Message Errors 33 | . . . . . . . . . 2 2 . 1 11 . 1 4 11 1 Matter Fused 25 | . . . . . . . . . . . . 1 13 . . 6 5 . Heat Flow Errors 9 | . . . . . . . . . 1 . 1 1 3 . . 2 1 . Energy Discharges 15 | . . . . . . . . . . . . 1 6 . . 2 6 . Parts Rejected 2 | . . . . . . . . . 1 . . . 1 . . . . . Parts Fused 1 | . . . . . . . . . . . . . . . 1 . . . Data Loss (minor) 11 | . . . . . . . . . . 2 . . 8 . . . 1 . Data Loss (major) 4 | . . . . . . . . . . . . 1 2 . . 1 . . Misfires 11 | . . . . . . . . . . . . . 5 . . . 6 . Alerts 4 | . . . . . . . . . . . . . 1 . . 3 . . Weapon Failures 5 | . . . . . . . . . . . . 1 3 . . . 1 . Overload Shots . | . . . . . . . . . . . . . . . . . . . Overflow Damage 811 | . . . . . 30 . 76 25 8 13 . 19 178 6 14 68 . 374 Projectiles 55 | . . . . . . . . . . . . . 55 . . . . . Explosions 523 | . . . . . 30 . . 25 8 13 . 19 26 6 . 22 . 374 Melee 233 | . . . . . . . 76 . . . . . 97 . 14 46 . . Knockbacks 7 | . . . . . . . . . . . . . 6 1 . . . . Impact . | . . . . . . . . . . . . . . . . . . . Kinetic 7 | . . . . . . . . . . . . . 6 1 . . . . Secondary . | . . . . . . . . . . . . . . . . . . . Self-Inflicted Damage 421 | . . . . . 10 . . . . 50 . . 88 . . 46 78 149 Shots 12 | . . . . . 1 . . . . 3 . . 3 . . 1 3 1 Rammed . | . . . . . . . . . . . . . . . . . . . Targets Rammed . | . . . . . . . . . . . . . . . . . . . Kicked . | . . . . . . . . . . . . . . . . . . . Crushed . | . . . . . . . . . . . . . . . . . . . Highest Temperature 539 | 40 72 2 . . 54 207 9 40 51 . 113 27 539 199 . 374 348 196 Average Temperature 119 | 20 40 2 . . 16 49 9 24 28 . 67 14 149 73 . 123 144 82 Received Heat Transfer 2048 | . 42 48 . . 126 180 63 39 9 21 . 63 258 339 . 226 54 580 Effects 19 | . . . . . . . . . . . . . 19 . . . . . Shutdowns 3 | . . . . . . . . . . . . . 3 . . . . . Energy Bleed 3 | . . . . . . . . . . . . . 3 . . . . . Interference 5 | . . . . . . . . . . . . . 5 . . . . . Matter Decay 4 | . . . . . . . . . . . . . 4 . . . . . Short Circuit 3 | . . . . . . . . . . . . . 3 . . . . . Damage (minor) 1 | . . . . . . . . . . . . . 1 . . . . . Siege Activations . | . . . . . . . . . . . . . . . . . . . Robots Corrupted . | . . . . . . . . . . . . . . . . . . . Combat Hostiles . | . . . . . . . . . . . . . . . . . . . Parts Fried . | . . . . . . . . . . . . . . . . . . . Impact Corruptions . | . . . . . . . . . . . . . . . . . . . Robots Melted . | . . . . . . . . . . . . . . . . . . . Combat Hostiles . | . . . . . . . . . . . . . . . . . . . Parts Melted 2 | . . . . . . 1 . . . . . . 1 . . . . . Heat Transferred 671 | 50 225 . . . . 296 . . . . . . 100 . . . . . Parts Sabotaged . | . . . . . . . . . . . . . . . . . . . Parts Stolen . | . . . . . . . . . . . . . . . . . . . Parts Stripped . | . . . . . . . . . . . . . . . . . . . Power Chain Reactions 1 | . . . . . . . . . . . . . 1 . . . . . Alert | -11 -10 -10 -10 -9 -8 -8 -8 -6 -6 -6 -6 -5 -5 -5 -4 -4 -4 -4 ------- Run | Yrd Mat Min Exi Min Mat Sto Rec Fac Low Low Dat Pro Fac Ext Fac Upp Upp War Peak Influence 974 | 5 220 176 . . 449 461 352 687 . . . . 974 804 395 . . . Initial 476 | . 3 18 . . . 189 179 420 . . . . 219 476 342 . . . Average 321 | 2 102 79 . . 111 366 239 330 . . . . 387 670 286 . . . Maximum Alert Level 3 | . 1 . . . 2 2 1 2 . . . . 3 3 1 . . . Low Security (%) 36 | 100 87 100 . 100 82 13 35 21 . . . . 27 . 34 . . . Level 1 29 | . 12 . . . 6 39 64 52 . . . . 21 . 65 . . . Level 2 28 | . . . . . 10 46 . 25 . . . . 43 46 . . . . Level 3 5 | . . . . . . . . . . . . . 8 53 . . . . Level 4 . | . . . . . . . . . . . . . . . . . . . Level 5 . | . . . . . . . . . . . . . . . . . . . High Security . | . . . . . . . . . . . . . . . . . . . Max Security . | . . . . . . . . . . . . . . . . . . . Squads Dispatched 29 | . 2 . . . 3 1 . 3 . . . . 15 . 5 . . . Investigation 5 | . 1 . . . . . . 1 . . . . 1 . 2 . . . Extermination 10 | . . . . . . . . 1 . . . . 7 . 2 . . . Reinforcement 13 | . 1 . . . 2 1 . 1 . . . . 7 . 1 . . . Assault . | . . . . . . . . . . . . . . . . . . . Garrison 1 | . . . . . 1 . . . . . . . . . . . . . Intercept . | . . . . . . . . . . . . . . . . . . . Searches Triggered 1 | . . . . . . . . 1 . . . . . . . . . . Data Miner Redirects 2 | . . . . . . . . . . . . . . . 2 . . . Construction Impeded 6 | . . . . . 1 1 . . . . . . 4 . . . . . Haulers Reinforced . | . . . . . . . . . . . . . . . . . . . Active Scanning Responses . | . . . . . . . . . . . . . . . . . . . Cargo Convoy Interrupts 1 | . . . . . . . . . . . . . 1 . . . . . Stealth | -11 -10 -10 -10 -9 -8 -8 -8 -6 -6 -6 -6 -5 -5 -5 -4 -4 -4 -4 --------- Run | Yrd Mat Min Exi Min Mat Sto Rec Fac Low Low Dat Pro Fac Ext Fac Upp Upp War Distress Signals 9 | . . . . . 2 3 . . . . . . 2 2 . . . . Communications Jammed . | . . . . . . . . . . . . . . . . . . . Distress Signals . | . . . . . . . . . . . . . . . . . . . Times Spotted 246 | . 13 4 1 . 15 10 6 10 14 9 . 17 44 18 7 10 7 61 Peak Tracking Total 37 | . 4 3 2 . 5 6 4 4 5 4 . 5 5 7 2 3 4 37 Tactical Retreats 7 | . . 1 . . . . . . 1 . . . 5 . . . . . Traps | -11 -10 -10 -10 -9 -8 -8 -8 -6 -6 -6 -6 -5 -5 -5 -4 -4 -4 -4 ------- Run | Yrd Mat Min Exi Min Mat Sto Rec Fac Low Low Dat Pro Fac Ext Fac Upp Upp War Traps Triggered 7 | . 1 . . . . 1 . 2 . . . . 3 . . . . . Indirectly . | . . . . . . . . . . . . . . . . . . . Trap Hack Attempts . | . . . . . . . . . . . . . . . . . . . Triggered . | . . . . . . . . . . . . . . . . . . . Disarmed . | . . . . . . . . . . . . . . . . . . . Reprogrammed . | . . . . . . . . . . . . . . . . . . . Reused . | . . . . . . . . . . . . . . . . . . . Traps Extracted . | . . . . . . . . . . . . . . . . . . . Installed 5 | . . 4 . . . . . 1 . . . . . . . . . . Triggered 47 | . . . . . . . . . 2 . . 2 1 . . . . 42 Most Traps Carried 1 | . . 1 1 1 1 1 1 1 . . . . . . . . . . Machines | -11 -10 -10 -10 -9 -8 -8 -8 -6 -6 -6 -6 -5 -5 -5 -4 -4 -4 -4 ---------- Run | Yrd Mat Min Exi Min Mat Sto Rec Fac Low Low Dat Pro Fac Ext Fac Upp Upp War Machines Disabled 15 | . . . . . 2 1 . 2 . . . . 8 1 . . . 1 Max in Single Turn 2 | . . . . . 1 1 . 1 . . . . 2 1 . . . 1 Garrison Access 2 | . . . . . . . . 2 . . . . . . . . . . Machines Repaired . | . . . . . . . . . . . . . . . . . . . Machines Dismantled . | . . . . . . . . . . . . . . . . . . . Machines Sabotaged . | . . . . . . . . . . . . . . . . . . . Overloaded Fab Kills . | . . . . . . . . . . . . . . . . . . . Hacking | -11 -10 -10 -10 -9 -8 -8 -8 -6 -6 -6 -6 -5 -5 -5 -4 -4 -4 -4 --------- Run | Yrd Mat Min Exi Min Mat Sto Rec Fac Low Low Dat Pro Fac Ext Fac Upp Upp War Machines Accessed 75 | . 3 . 5 . 8 4 11 12 . . 4 . 17 1 5 1 . 4 Terminals 34 | . 2 . . . 7 4 5 7 . . . . 7 1 1 . . . Fabricators 6 | . . . . . . . . 1 . . . . 3 . 2 . . . Repair Stations 3 | . 1 . . . 1 . . . . . . . 1 . . . . . Recycling Units 11 | . . . . . . . 6 1 . . . . 3 . 1 . . . Scanalyzers 3 | . . . . . . . . 1 . . . . 1 . 1 . . . Garrison Access 4 | . . . . . . . . 2 . . . . 2 . . . . . Total Hacks 188 | . 7 . 15 . 22 8 17 27 . . 28 . 40 2 13 1 . 8 Successful 119 | . 2 . 15 . 8 5 13 11 . . 28 . 20 1 7 1 . 8 Failed 69 | . 5 . . . 14 3 4 16 . . . . 20 1 6 . . . Catastrophic 18 | . . . . . 5 . 1 2 . . . . 8 . 2 . . . Database Lockouts . | . . . . . . . . . . . . . . . . . . . Manual 93 | . 5 . 1 . 17 8 14 22 . . . . 20 . 3 . . 3 Terminals 74 | . 5 . . . 19 8 8 16 . . . . 14 2 2 . . . Fabricators 19 | . . . . . . . . 3 . . . . 8 . 8 . . . Repair Stations 9 | . 2 . . . 3 . . . . . . . 4 . . . . . Recycling Units 22 | . . . . . . . 9 4 . . . . 7 . 2 . . . Scanalyzers 6 | . . . . . . . . 1 . . . . 4 . 1 . . . Garrison Access 6 | . . . . . . . . 3 . . . . 3 . . . . . Terminal Hacks 61 | . . . 15 . . 3 1 . . . 28 . 4 1 . 1 . 8 Record 28 | . . . 14 . . . . . . . 11 . . . . . . 3 Part Schematic 8 | . . . . . . . . . . . 8 . . . . . . . Robot Schematic 6 | . . . . . . . . . . . 6 . . . . . . . Prototype ID Bank 8 | . . . . . . 1 . . . . 3 . . . . . . 4 Open Door 6 | . . . . . . 2 . . . . . . 1 1 . 1 . 1 Branch Access Points 1 | . . . . . . . . . . . . . 1 . . . . . Terminal Index 1 | . . . . . . . . . . . . . 1 . . . . . Unreport Threat 1 | . . . . . . . . . . . . . 1 . . . . . Zone Layout 1 | . . . . . . . 1 . . . . . . . . . . . Derelict Proto ID Bank 1 | . . . 1 . . . . . . . . . . . . . . . Fabricator Hacks 10 | . . . . . . . . 1 . . . . 4 . 5 . . . Network Status 4 | . . . . . . . . 1 . . . . 2 . 1 . . . Load Schematic 3 | . . . . . . . . . . . . . 1 . 2 . . . Build 3 | . . . . . . . . . . . . . 1 . 2 . . . Repair Station Hacks 6 | . 2 . . . 2 . . . . . . . 2 . . . . . Scan Component 3 | . 1 . . . 1 . . . . . . . 1 . . . . . Repair 3 | . 1 . . . 1 . . . . . . . 1 . . . . . Recycling Unit Hacks 4 | . . . . . . . 1 . . . . . 2 . 1 . . . Process 1 | . . . . . . . . . . . . . 1 . . . . . Report Inventory 3 | . . . . . . . 1 . . . . . 1 . 1 . . . Scanalyzer 2 | . . . . . . . . . . . . . 2 . . . . . Insert Component 1 | . . . . . . . . . . . . . 1 . . . . . Analyze 1 | . . . . . . . . . . . . . 1 . . . . . Garrison Access Hacks 2 | . . . . . . . . 2 . . . . . . . . . . Seal Access 2 | . . . . . . . . 2 . . . . . . . . . . Unauthorized Hacks 34 | . . . . . 6 2 11 8 . . . . 6 . 1 . . . Terminals 19 | . . . . . 6 2 3 4 . . . . 3 . 1 . . . Track 1 | . . . . . 1 . . . . . . . . . . . . . Assimilate 1 | . . . . . 1 . . . . . . . . . . . . . Botnet 11 | . . . . . 2 1 3 3 . . . . 2 . . . . . Operators 6 | . . . . . 2 1 . 1 . . . . 1 . 1 . . . Fabricators 1 | . . . . . . . . . . . . . 1 . . . . . Haulers 1 | . . . . . . . . . . . . . 1 . . . . . Repair Stations . | . . . . . . . . . . . . . . . . . . . Recycling Units 12 | . . . . . . . 8 3 . . . . 1 . . . . . Monitor 2 | . . . . . . . 1 1 . . . . . . . . . . Recyclers 3 | . . . . . . . 1 1 . . . . 1 . . . . . Tunnel 7 | . . . . . . . 6 1 . . . . . . . . . . Scanalyzers 2 | . . . . . . . . 1 . . . . 1 . . . . . Researchers 2 | . . . . . . . . 1 . . . . 1 . . . . . Garrison Access . | . . . . . . . . . . . . . . . . . . . Data Cores Recovered 1 | . . . . . . . . . . . . . . . 1 . . . Used . | . . . . . . . . . . . . . . . . . . . Hacking Detections 48 | . 2 . . . 8 3 5 9 . . . . 15 1 5 . . . Full Trace Events 3 | . . . . . . . . . . . . . 1 . 2 . . . Feedback Events . | . . . . . . . . . . . . . . . . . . . Feedback Blocked . | . . . . . . . . . . . . . . . . . . . Robot Schematics Acquired 6 | . . . . . . . . . . . 6 . . . . . . . Robots Built . | . . . . . . . . . . . . . . . . . . . Authchips . | . . . . . . . . . . . . . . . . . . . Time . | . . . . . . . . . . . . . . . . . . . Total Robot Build Rating . | . . . . . . . . . . . . . . . . . . . Part Schematics Acquired 9 | . . . . . . . . . . . 8 . 1 . . . . . Parts Built 3 | . . . . . . . . . . . . . 1 . 2 . . . Authchips . | . . . . . . . . . . . . . . . . . . . Time 490 | . . . . . . . . . . . . . 152 . 338 . . . Total Part Build Rating 17 | . . . . . . . . . . . . . 5 . 12 . . . Parts Repaired 3 | . 1 . . . 1 . . . . . . . 1 . . . . . Time 96 | . 26 . . . 26 . . . . . . . 44 . . . . . Parts Recycled . | . . . . . . . . . . . . . . . . . . . Recycled Matter 112 | . . . . . . . . . . . . . 112 . . . . . Retrieved Matter . | . . . . . . . . . . . . . . . . . . . Retrieved Components . | . . . . . . . . . . . . . . . . . . . Parts Scanalyzed 1 | . . . . . . . . . . . . . 1 . . . . . Part Schematics Acquired 1 | . . . . . . . . . . . . . 1 . . . . . Parts Damaged . | . . . . . . . . . . . . . . . . . . . Bothacking | -11 -10 -10 -10 -9 -8 -8 -8 -6 -6 -6 -6 -5 -5 -5 -4 -4 -4 -4 ------------ Run | Yrd Mat Min Exi Min Mat Sto Rec Fac Low Low Dat Pro Fac Ext Fac Upp Upp War Used RIF Installer . | . . . . . . . . . . . . . . . . . . . Robots Hacked . | . . . . . . . . . . . . . . . . . . . Non-combat . | . . . . . . . . . . . . . . . . . . . Combat . | . . . . . . . . . . . . . . . . . . . Robot Hacks Applied . | . . . . . . . . . . . . . . . . . . . Relay Couplers Released . | . . . . . . . . . . . . . . . . . . . Fabnet Peak Effective % . | . . . . . . . . . . . . . . . . . . . Robots Rewired 8 | . . . . . . . 7 . . . . . 1 . . . . . Allies Hacked . | . . . . . . . . . . . . . . . . . . . Hacks Repelled . | . . . . . . . . . . . . . . . . . . . Allies | -11 -10 -10 -10 -9 -8 -8 -8 -6 -6 -6 -6 -5 -5 -5 -4 -4 -4 -4 -------- Run | Yrd Mat Min Exi Min Mat Sto Rec Fac Low Low Dat Pro Fac Ext Fac Upp Upp War Total Allies 13 | . . 2 . 3 . . 7 . . . . . 1 . . . . . Largest Group 7 | . . 2 . 3 3 . 7 7 . . . . 1 . . . . . Highest-Rated Group 114 | . . 45 . 40 40 . 114 114 . . . . 29 . . . . . Highest-Rated Ally 31 | . . 31 . 16 16 . 27 27 . . . . 29 . . . . . Total Orders 4 | . . . . . . . 2 . . . . . 2 . . . . . STAY 1 | . . . . . . . . . . . . . 1 . . . . . ROAM 2 | . . . . . . . 1 . . . . . 1 . . . . . FOLLOW 1 | . . . . . . . 1 . . . . . . . . . . . Ally Attacks 30 | . . 5 . . 8 . 2 12 . . . . 3 . . . . . Total Damage 360 | . . 42 . . 49 . 80 170 . . . . 19 . . . . . Kills 8 | . . 2 . . 1 . 3 2 . . . . . . . . . . Allies Corrupted . | . . . . . . . . . . . . . . . . . . . Allies Melted . | . . . . . . . . . . . . . . . . . . . Intel | -11 -10 -10 -10 -9 -8 -8 -8 -6 -6 -6 -6 -5 -5 -5 -4 -4 -4 -4 ------- Run | Yrd Mat Min Exi Min Mat Sto Rec Fac Low Low Dat Pro Fac Ext Fac Upp Upp War Robot Analysis Total . | . . . . . . . . . . . . . . . . . . . Derelict Logs Recovered 10 | . . . . 2 . . . . . 3 . 1 . . . 2 2 . Drone Launches . | . . . . . . . . . . . . . . . . . . . Drone Recoveries . | . . . . . . . . . . . . . . . . . . . Exploration | -11 -10 -10 -10 -9 -8 -8 -8 -6 -6 -6 -6 -5 -5 -5 -4 -4 -4 -4 ------------- Run | Yrd Mat Min Exi Min Mat Sto Rec Fac Low Low Dat Pro Fac Ext Fac Upp Upp War Turns Passed 16960 | 80 571 415 345 322 304 252 663 1536 300 673 82 450 5381 347 884 1292 1281 1782 Spaces Moved 11653 | 55 353 281 286 332 251 162 509 1471 247 689 91 406 3356 164 948 627 539 886 Core 32 | 4 . . . . . . . . . . . . . 11 . . . 17 Treads . | . . . . . . . . . . . . . . . . . . . Legs 10237 | 51 353 281 286 332 251 162 509 1471 247 689 91 406 2958 153 . 589 539 869 Wheels 589 | . . . . . . . . . . . . . 398 . 153 38 . . Hover 593 | . . . . . . . . . . . . . . . 593 . . . Flight 202 | . . . . . . . . . . . . . . . 202 . . . Fastest Speed 35 | 50 120 120 90 90 90 90 90 90 90 90 90 90 100 50 35 115 140 50 Average Speed 117 | 116 122 120 101 90 90 90 90 90 90 90 90 90 117 147 61 189 224 186 Slowest Speed 350 | 120 190 120 120 90 90 90 90 90 90 90 90 90 190 190 115 210 350 280 Overloaded Moves . | . . . . . . . . . . . . . . . . . . . Propulsion Burnouts . | . . . . . . . . . . . . . . . . . . . Robots Hopped . | . . . . . . . . . . . . . . . . . . . Cave-ins Triggered . | . . . . . . . . . . . . . . . . . . . Exploration Rate (%) 56 | 6 54 66 61 86 30 42 97 33 59 78 75 62 57 31 10 76 65 77 Regions Visited 18 Branch Regions 13 Pre-discovered Areas 12 | . . 1 1 1 . . 6 1 . . 1 . . . . . 1 . Known Exits Taken 11 | . 1 1 1 1 . . . 1 1 1 1 1 1 1 . . . . Unknown Exits Taken 7 | 1 . . . . 1 1 1 . . . . . . . 1 1 1 . Scrap Searched 19 | . . 2 . 1 . . . . . 7 . 2 . . . 3 4 . Spaces Dug 81 | . . . . . 5 . . 11 . . . . 54 . 6 . 5 . Terrain Destroyed 1213 | . . . . . 51 24 . 16 152 59 . 127 362 118 6 82 82 134 Melee 30 | . . . . . . . . 5 . . . . 19 . 6 . . . Projectile 182 | . . . . . . . . . . . . 8 134 1 . 8 15 16 AOE 1001 | . . . . . 51 24 . 11 152 59 . 119 209 117 . 74 67 118 Terrain Rammed . | . . . . . . . . . . . . . . . . . . . Walls Destroyed . | . . . . . . . . . . . . . . . . . . . Machines Disabled . | . . . . . . . . . . . . . . . . . . . Actions | -11 -10 -10 -10 -9 -8 -8 -8 -6 -6 -6 -6 -5 -5 -5 -4 -4 -4 -4 --------- Run | Yrd Mat Min Exi Min Mat Sto Rec Fac Low Low Dat Pro Fac Ext Fac Upp Upp War Total 14113 | 64 426 325 337 356 295 210 697 1667 300 726 90 443 4488 229 1206 690 576 988 Wait 1303 | . 8 12 46 18 10 6 65 83 34 18 . 5 752 15 192 5 6 28 Move 11635 | 54 352 280 285 331 250 161 508 1470 246 688 90 405 3355 163 947 626 538 886 Hop . | . . . . . . . . . . . . . . . . . . . Pick Up 88 | 2 10 3 . 2 5 3 1 23 2 2 . 2 20 1 6 1 2 3 Fast Attach 147 | 6 4 . . . 2 5 4 15 1 . . 2 48 4 23 16 8 9 Attach 43 | . 1 . . 1 4 3 . 3 . . . 2 17 . 3 2 5 2 Detach 20 | . 1 . . . 1 2 . 1 . . . 1 7 1 . 2 3 1 Swap 60 | . 6 3 2 1 3 1 . 11 1 3 . 1 22 1 1 1 . 3 Drop 172 | . 7 5 2 3 4 1 4 39 2 5 . 4 51 7 12 12 . 14 Fire 370 | 2 37 18 2 . 16 27 . 7 14 3 . 19 149 30 . 18 13 15 Melee 131 | . . . . . . 1 11 9 . 7 . 2 60 7 22 7 1 4 Ram . | . . . . . . . . . . . . . . . . . . . Kick . | . . . . . . . . . . . . . . . . . . . Crush . | . . . . . . . . . . . . . . . . . . . Escape Stasis 5 | . . . . . . . . 5 . . . . . . . . . . Rewire 134 | . . . . . . . 104 . . . . . 7 . . . . 23 Trap 5 | . . 4 . . . . . 1 . . . . . . . . . . Miscellaneous . | . . . . . . . . . . . . . . . . . . . Route ------- -11/Scrapyard -10/Materials (discovered 2 exits: *Mat / *Min) -10/Mines (discovered 3 exits: *Mat x2 / *Exi) -10/Exiles -9/Mines -8/Materials -8/Storage -8/Recycling -6/Factory (discovered 2 exits: *Low x2) -6/Lower Caves -6/Lower Caves (discovered 2 exits: *Fac / *Dat) -6/Data Miner -5/Proximity Caves -5/Factory (discovered 6 exits: *Fac x2 / *Upp x2 / *Ext x2) -5/Extension -4/Factory -4/Upper Caves -4/Upper Caves (discovered 2 exits: [*Res] / *War) -4/Warlord History --------- Turn | Location | Event 9 | -11/Scrapyard | Discovered new exit (range 15) 81 | -11/Scrapyard | Entered Materials 135 | -10/Materials | Discovered new exit (range 15) 284 | -10/Materials | Identified exit to Materials 301 | -10/Materials | Build established: Mutant 484 | -10/Materials | Repaired Aluminum Leg 496 | -10/Materials | Discovered new exit (range 13) 651 | -10/Materials | Identified exit to Mines 652 | -10/Materials | Entered Mines 720 | -10/Mines | Discovered exit to Materials (range 3) 874 | -10/Mines | Found a hidden stash of uninstalled traps 912 | -10/Mines | A weapon hastily lodged in a ceiling crevice suddenly fell to the ground 1008 | -10/Mines | Discovered exit to Materials (range 5) 1044 | -10/Mines | Learned location of Storage (-8) 1062 | -10/Mines | Deemed a non-threat by the Exiles lab entrance 1062 | -10/Mines | Discovered new exit (range 5) 1066 | -10/Mines | Identified exit to Exiles 1067 | -10/Mines | Entered Exiles 1097 | -10/Exiles | Met 8R-AWN 1118 | -10/Exiles | Met EX-HEX 1150 | -10/Exiles | Met EX-BIN 1165 | -10/Exiles | Aligned with FarCom system 1166 | -10/Exiles | Given EX-Vault access code 1193 | -10/Exiles | Opened EX-Vault 1201 | -10/Exiles | Found Potential Leg 1203 | -10/Exiles | Found Potential Leg 1235 | -10/Exiles | Exiles lab attacked by MAIN.C 1302 | -10/Exiles | Learned location of Zion (-7) 1405 | -10/Exiles | Discovered new exit (range 10) 1412 | -10/Exiles | Identified exit to Mines 1412 | -10/Exiles | Left Exiles lab with Potential Leg 1412 | -10/Exiles | Entered Mines 1414 | -9/Mines | Assisted by bots powering up and referring to "LRC-V3" 1432 | -9/Mines | Received a Rocket Launcher from a helpful Derelict 1456 | -9/Mines | Learned Materials stockpile data 1658 | -9/Mines | Discovered new exit (range 6) 1662 | -9/Mines | Identified exit to Materials 1734 | -9/Mines | Entered Materials 1734 | -8/Materials | Accompanied by 3 allies 1734 | -8/Materials | Evolved 4 slots: Utility x2, Weapon x2 1985 | -8/Materials | Garrison activated, responded to threat 2000 | -8/Materials | Lost 3 allies 2001 | -8/Materials | Repaired Assault Rifle 2005 | -8/Materials | Discovered new exit (range 15) 2031 | -8/Materials | Build established: Skirmisher 2036 | -8/Materials | Destroyed 11 combat bots 2038 | -8/Materials | Entered Storage 2286 | -8/Storage | Used back door to open Recycling access 2286 | -8/Storage | Discovered new exit (range 5) 2290 | -8/Storage | Entered Recycling 2881 | -8/Recycling | Build established: Commander-Skirmisher 2917 | -8/Recycling | Discovered new exit (range 6) 2953 | -8/Recycling | Entered Factory 2953 | -6/Factory | Accompanied by 7 allies 2953 | -6/Factory | Evolved 4 slots: Utility x2, Weapon x2 3014 | -6/Factory | Lost 4 allies 3248 | -6/Factory | Build established: Pyromaniac-Executioner 3303 | -6/Factory | Search patrols dispatched 3315 | -6/Factory | Lost 3 allies 3559 | -6/Factory | Build established: Executioner 3898 | -6/Factory | Discovered new exit (range 4) 3972 | -6/Factory | Discovered new exit (range 13) 4433 | -6/Factory | Identified exit to Lower Caves 4489 | -6/Factory | Entered Lower Caves 4520 | -6/Lower Caves | Attracted the attention of an 0b10 checkpoint 4584 | -6/Lower Caves | Spotted B-75 Beast 4689 | -6/Lower Caves | Destroyed 7 combat bots 4742 | -6/Lower Caves | Encountered a Warlord checkpoint 4774 | -6/Lower Caves | Discovered new exit (range 13) 4788 | -6/Lower Caves | Identified exit to Lower Caves 4789 | -6/Lower Caves | Entered another Lower Caves area 4795 | -6/Lower Caves | Discovered new exit (range 14) 4816 | -6/Lower Caves | Identified exit to Factory 5085 | -6/Lower Caves | Identified exit to Data Miner 5291 | -6/Lower Caves | Learned Factory interactive machine intel 5365 | -6/Lower Caves | Spotted B-75 Beast 5462 | -6/Lower Caves | Entered Data Miner 5462 | -6/Data Miner | Discovered new exit (range 6) 5468 | -6/Data Miner | Identified exit to Proximity Caves 5476 | -6/Data Miner | Met Data Miner 5505 | -6/Data Miner | Learned location of Section 7 (-2) 5505 | -6/Data Miner | Acquired the access code to Warlord's prototype stash 5521 | -6/Data Miner | Received God Mode back door access code from Data Miner 5544 | -6/Data Miner | Entered Proximity Caves 5547 | -5/Proximity Caves | Spotter reported a threat 5701 | -5/Proximity Caves | Destroyed 7 combat bots 5768 | -5/Proximity Caves | Attracted the attention of an 0b10 checkpoint 5963 | -5/Proximity Caves | Discovered exit to Factory (range 11) 5994 | -5/Proximity Caves | Entered Factory 5994 | -5/Factory | Evolved 2 slots: Propulsion x2 5995 | -5/Factory | Identified exit to Upper Caves 5996 | -5/Factory | Loaded intel: 53 interactive machine locations 6231 | -5/Factory | Discovered new exit (range 21) 6331 | -5/Factory | Identified exit to Factory 7145 | -5/Factory | Repaired Ripper 7162 | -5/Factory | Cargo convoy interrupted 7284 | -5/Factory | Discovered exit to Factory (range 22) 8268 | -5/Factory | Fabricated Lgt. Regenerative Plating? 9247 | -5/Factory | Build established: Skirmisher 9369 | -5/Factory | Lost 4 parts (1p1n1u1w) 9625 | -5/Factory | Identified exit to Extension 10312 | -5/Factory | Build established: Executioner 11063 | -5/Factory | Lost 4 parts (1n1u2w) 11375 | -5/Factory | Entered Extension 11397 | -5/Extension | Disrupted transfer network 11543 | -5/Extension | Spotted B-75 Beast 11586 | -5/Extension | Lost 3 parts (3w) 11650 | -5/Extension | Core integrity fell below 50% 11694 | -5/Extension | Spotted B-75 Beast 11717 | -5/Extension | Core integrity fell below 20% 11721 | -5/Extension | Discovered exit to Factory (range 3) 11722 | -5/Extension | Entered Factory 11722 | -4/Factory | Evolved 2 slots: Power x1, Utility x1 11751 | -4/Factory | Lost 12 parts (5n4u3w) 11794 | -4/Factory | Incoming investigation squad redirected 11860 | -4/Factory | Discovered new exit (range 19) 11937 | -4/Factory | Fabricated Tiamat Missile Launcher? 11995 | -4/Factory | Incoming investigation squad redirected 12134 | -4/Factory | Fabricated Tiamat Missile Launcher (x1) 12167 | -4/Factory | Build established: Scavenger-Scout 12606 | -4/Factory | Entered Upper Caves 12633 | -4/Upper Caves | Lost 3 parts (1p1u1w) 12922 | -4/Upper Caves | Attracted the attention of an 0b10 checkpoint 13149 | -4/Upper Caves | Spotted B-86 Titan 13186 | -4/Upper Caves | Build established: Hacker-Executioner 13366 | -4/Upper Caves | Learned Research emergency access door positions 13647 | -4/Upper Caves | Build established: Derelict-Executioner 13755 | -4/Upper Caves | Learned 8 Research zone layouts 13861 | -4/Upper Caves | Discovered new exit (range 21) 13898 | -4/Upper Caves | Entered another Upper Caves area 13978 | -4/Upper Caves | Spotted B-86 Titan 14139 | -4/Upper Caves | Discovered new exit (range 8) 14327 | -4/Upper Caves | Destroyed B-86 Titan 14356 | -4/Upper Caves | Lost 8 parts (3n4u1w) 14583 | -4/Upper Caves | Learned Research emergency access door positions 15029 | -4/Upper Caves | Encountered a Warlord checkpoint 15073 | -4/Upper Caves | Learned location of Testing (-3) 15162 | -4/Upper Caves | Discovered new exit (range 7) 15179 | -4/Upper Caves | Entered Warlord 15724 | -4/Warlord | Visited the Vortex Lab 15729 | -4/Warlord | Warlord's base attacked by MAIN.C 15749 | -4/Warlord | Found Prototype Launcher 15749 | -4/Warlord | Identified Vortex Catalyst Activator 15755 | -4/Warlord | Found Prototype Energy Gun 15758 | -4/Warlord | Found Prototype Energy Gun 15760 | -4/Warlord | Identified Vortex Rail (x2) 16079 | -4/Warlord | Warlord forces counterattacked 16122 | -4/Warlord | Spotted Executioner 16235 | -4/Warlord | Spotted Striker 16317 | -4/Warlord | Lost 6 allies 16404 | -4/Warlord | Warlord base infiltrated, sounded retreat 16471 | -4/Warlord | Met Warlord 16595 | -4/Warlord | Opened Warlord's prototype stash 16604 | -4/Warlord | Found Prototype Reactor 16604 | -4/Warlord | Identified Vortex Chain Reactor 16627 | -4/Warlord | Found Prototype Processor 16627 | -4/Warlord | Identified Exp. Targeting Computer 16634 | -4/Warlord | Found Prototype Processor 16634 | -4/Warlord | Identified Exp. Armor Integrity Analyzer 16637 | -4/Warlord | Found Prototype Device 16637 | -4/Warlord | Identified Thermal Barrier 16808 | -4/Warlord | Spotted Executioner 16896 | -4/Warlord | Spotted Executioner 16898 | -4/Warlord | Spotted Executioner 16905 | -4/Warlord | Destroyed Executioner 16906 | -4/Warlord | Spotted Striker 16921 | -4/Warlord | Spotted Executioner 16926 | -4/Warlord | Destroyed 11 combat bots 16932 | -4/Warlord | Core integrity fell below 50% 16948 | -4/Warlord | Spotted Striker 16957 | -4/Warlord | Spotted Executioner 16959 | -4/Warlord | Core integrity fell below 20% 16961 | -4/Warlord | Destroyed by P-70 Sage with Tesla Rifle Last Messages --------------- 16947_ P-70 Sage destroyed. 16948_ Vortex Chain Reactor destroyed. 16948_ Chain reaction triggered in Antimatter Reactor. 16948_ Retrofitting Station disabled. 16950_ Enh. Biometal Leg destroyed. 16952_ P-80 Master resets I-47 Archangel, system corruption cleaned. 16952_ P-70 Sage resets L-61 Swordsman, system corruption cleaned. 16953_ Spear destroyed. 16954_ Acquired 84 matter. 16955_ Acquired 107 matter. 16955_ Enh. Biometal Leg destroyed. 16955_ Thermal Barrier destroyed. 16956_ Penetrated by Slug. 16956_ WAR.Sys disabled. 16958_ P-70 Sage resets P-70 Sage, system corruption cleaned. 16961_ Acquired 38 matter. Map ----- +----------------------------------------------------+ | | | | | | | | | | | | | | | | | | | | | | | | | | | | | | | | | | | ?????????????????????????????????????????????????? | | ?????????????????????????????????????????????????? | | ????######???????????????????????????????????????? | | ????#"X""#????######?????????????????????????????? | | ????# #????#"" "#?????????????????????????????? | | ???##+####????#% #?????????????????????????????? | | ???# ^###########+##############?????????????????? | | !!## + # % K i ######????????????? | | + # # l b @ # ???????????? | | !!## # # p Kb g s #??? | | ???# # """"" # l """" p p # ###+##??? | | ??## # """"" ## p "" s ???? | | ### # """"" ##p " pg < ???? | | ## # ## pgi # ## ########? | | ## # ## g ## | | ## ########/"##Ep """ """ # | | # ##### ##Eg###;;;;;;;## ## """ """ + | | + ##% ## # ##?##?# """ """ # | | ### ## ## ###?????# #^ | | ??# ##### ## "# #???????############## | | ??####"##??#" ### ## #????????????????????# | | ???##" "####" "" # ##################???# | | ???# " "## " # # """ ##"""""""" + #???# | | ????[ ""# " [ + """ ##""""""" + #???## | | ?????" ""# |%*# """ ##"" ## #????# | | ??###" ## # ### =## """ ##"" ## #????# | | ??#" " #! ## """ ##"" ## #????# | | ??#" #=]## ##"" ## #????# | | #### #= ##"" "## #????# | | # "" # # ###+###" "## #????# | | # " = % # #?#" X "## #????# | | " % = ###" " !*""""## ###### | | "" ## ### #### ##"""""[""""## ## | +----------------------------------------------------+ Best States ------------- Heat Dissipation 43 Coolant Potential 100 Energy Generation 55 Energy Capacity 700 Matter Stores 400 Matter Capacity 400 Sight Range 22 Robot Scan Range 19 Terrain Scan Range 20 Terrain Scan Density 10 Base Temperature (-) 200 Corruption Block 9 Armor Coverage 825 Resistance: TH 50 Propulsion Shielding 66 Weapon Cycling 20 Melee Speed Boost 20 Evasion (%) 63 Targeting Accuracy 20 Melee Accuracy 13 Target Analysis 6 Core Analysis 6 Armor Integrity Analysis 50 Recoil Reduction 1 Kinecelleration 40 Offensive Hacking 10 Defensive Hacking 10 Item Schematics ----------------- Combat Drone Bay | -6/Data Miner | Free Lgt. Regenerative Plating | -6/Data Miner | Free Enh. Armored Leg | -6/Data Miner | Free Imp. Matter Compressor | -6/Data Miner | Free Adv. Medium Treads | -6/Data Miner | Free Tiamat Missile Launcher | -6/Data Miner | Free Lrn. Terrain Scanner | -6/Data Miner | Free Dispersion Rifle | -6/Data Miner | Free Imp. Cryofiber Web | -5/Factory | Scanalyzed Robot Schematics ------------------ S-27 Virus | -6/Data Miner | Free B-48 Gladiator | -6/Data Miner | Free E-15 Imp | -6/Data Miner | Free G-50 Soldier | -6/Data Miner | Free W-44 Eye | -6/Data Miner | Free A-27 Freighter | -6/Data Miner | Free Fabricated ------------ Lgt. Regenerative Plating | x1 | -5/Factory Tiamat Missile Launcher | x1 | -4/Factory Tiamat Missile Launcher | x1 | -4/Factory Alien Tech Used ----------------- None Achievements -------------- Reappropriation Challenges ------------ None Game ------ Seed MagneticNullBattery Manual? 0 Play Time 03:02:13 Cumulative 88.2 hours Start 2024.04.18 @ 15:15:14 End 2024.04.18 @ 18:31:22 Sessions 1 Manual Loads 0 Difficulty Rogue Special Mode None Game No. 100 Rogue 95 Adventurer 5 Explorer 0 Win Type - Total 3 Types 2/0/0/1/0/0/0/0/0 Lore% 43 Gallery% 59 Achievement% 45 Wizard Run 0 Options --------- Layout 1 ASCII 0 Keyboard 0 Movement Arrows Keybinds 0 Fullscreen 1 Font 24/Terminus Map View 50x35 Zoom Use 0% Tactical HUD 1 Map Filters NONE Filters NONE Steam 1 RUN: 5d7d9bb3-9912-4aec-8b17-651ff94bbc0b